[Event "Early-Titled-Tuesday-Blitz-September-05-2023"]
[Site "Chess.com"]
[Date "2023.09.05"]
[Round "2"]
[White "Ducke13"]
[Black "Kurai"]
[Result "0-1"]
[WhiteElo "2416"]
[BlackElo "2692"]
[TimeControl "180+1"]
[EndTime "8:19:14 PDT"]
[Termination "Kurai won on time"]

1. d4 {[%clk 0:03:00.9]} 1... d5 {[%clk 0:03:00]} 2. g3 {[%clk 0:02:57.6]} 2...
Nf6 {[%clk 0:03:00.1]} 3. Nf3 {[%clk 0:02:56.5]} 3... e6 {[%clk 0:02:57.7]} 4.
Bg2 {[%clk 0:02:56]} 4... Be7 {[%clk 0:02:58.1]} 5. O-O {[%clk 0:02:55.8]} 5...
O-O {[%clk 0:02:58.8]} 6. c4 {[%clk 0:02:56.4]} 6... dxc4 {[%clk 0:02:57.7]} 7.
Qc2 {[%clk 0:02:55.4]} 7... a6 {[%clk 0:02:57.9]} 8. a4 {[%clk 0:02:56.1]} 8...
Bd7 {[%clk 0:02:57.8]} 9. Rd1 {[%clk 0:02:56.5]} 9... Bc6 {[%clk 0:02:57.3]} 10.
Nc3 {[%clk 0:02:56.4]} 10... Bxf3 {[%clk 0:02:53]} 11. Bxf3 {[%clk 0:02:55.8]}
11... c6 {[%clk 0:02:53.6]} 12. b3 {[%clk 0:02:46.8]} 12... cxb3 {[%clk
0:02:48.9]} 13. Qxb3 {[%clk 0:02:47.7]} 13... Qc8 {[%clk 0:02:39.4]} 14. Rb1
{[%clk 0:02:41.4]} 14... b5 {[%clk 0:02:11.3]} 15. axb5 {[%clk 0:01:56.8]} 15...
axb5 {[%clk 0:02:11.4]} 16. Nxb5 {[%clk 0:01:56.4]} 16... Nbd7 {[%clk
0:02:11.5]} 17. Nc3 {[%clk 0:01:51.9]} 17... Qa6 {[%clk 0:02:05.2]} 18. Bf4
{[%clk 0:01:39.1]} 18... Nd5 {[%clk 0:02:03.8]} 19. Nxd5 {[%clk 0:01:38.4]}
19... cxd5 {[%clk 0:02:03.6]} 20. e4 {[%clk 0:01:34.3]} 20... Nf6 {[%clk
0:01:35]} 21. exd5 {[%clk 0:01:31.5]} 21... Nxd5 {[%clk 0:01:33.9]} 22. Bxd5
{[%clk 0:01:28.4]} 22... exd5 {[%clk 0:01:34.3]} 23. Qxd5 {[%clk 0:01:28.4]}
23... Bf6 {[%clk 0:01:33.8]} 24. Qf3 {[%clk 0:01:05.6]} 24... Rad8 {[%clk
0:01:31]} 25. d5 {[%clk 0:01:04.1]} 25... Qa8 {[%clk 0:01:24.7]} 26. Kg2 {[%clk
0:01:03]} 26... Rfe8 {[%clk 0:01:23.7]} 27. h4 {[%clk 0:01:01.7]} 27... Rd7
{[%clk 0:01:19.5]} 28. h5 {[%clk 0:00:49.6]} 28... h6 {[%clk 0:01:13.2]} 29.
Bxh6 {[%clk 0:00:40.4]} 29... Red8 {[%clk 0:00:57.2]} 30. Rb5 {[%clk 0:00:33.4]}
30... Qa6 {[%clk 0:00:52.7]} 31. Rb4 {[%clk 0:00:24]} 31... gxh6 {[%clk
0:00:51.9]} 32. Rg4+ {[%clk 0:00:23.1]} 32... Bg7 {[%clk 0:00:40.5]} 33. Qe4
{[%clk 0:00:17.7]} 33... Qd6 {[%clk 0:00:28.7]} 34. Qd4 {[%clk 0:00:13.8]} 34...
f5 {[%clk 0:00:28]} 35. Rg6 {[%clk 0:00:10.8]} 35... Qe7 {[%clk 0:00:26.4]} 36.
Qc4 {[%clk 0:00:09.6]} 36... Qe4+ {[%clk 0:00:26]} 37. Qxe4 {[%clk 0:00:09.2]}
37... fxe4 {[%clk 0:00:26.9]} 38. d6 {[%clk 0:00:06.9]} 38... Kh7 {[%clk
0:00:25.5]} 39. Kh3 {[%clk 0:00:06]} 39... Rf8 {[%clk 0:00:24.1]} 40. Kg2 {[%clk
0:00:05.5]} 40... Rf5 {[%clk 0:00:23.8]} 41. g4 {[%clk 0:00:05.1]} 41... Rf4
{[%clk 0:00:22.9]} 42. Kg3 {[%clk 0:00:04.7]} 42... Rf3+ {[%clk 0:00:18.2]} 43.
Kg2 {[%clk 0:00:05.2]} 43... Bf8 {[%clk 0:00:17.7]} 44. Rd4 {[%clk 0:00:04.9]}
44... Rf4 {[%clk 0:00:15.2]} 45. Kg3 {[%clk 0:00:05]} 45... Rf3+ {[%clk
0:00:14.7]} 46. Kg2 {[%clk 0:00:05.5]} 46... Rff7 {[%clk 0:00:15]} 47. Rxe4
{[%clk 0:00:05.1]} 47... Rxd6 {[%clk 0:00:15.6]} 48. Ree6 {[%clk 0:00:05.2]}
48... Rxe6 {[%clk 0:00:15.7]} 49. Rxe6 {[%clk 0:00:06.1]} 49... Bg7 {[%clk
0:00:16.2]} 50. f3 {[%clk 0:00:05.7]} 50... Kg8 {[%clk 0:00:16.8]} 51. Rg6
{[%clk 0:00:05.7]} 51... Kf8 {[%clk 0:00:16.7]} 52. g5 {[%clk 0:00:05.9]} 52...
hxg5 {[%clk 0:00:15.6]} 53. Rxg5 {[%clk 0:00:06.3]} 53... Ke7 {[%clk 0:00:15.6]}
54. Kg3 {[%clk 0:00:06.2]} 54... Ke6 {[%clk 0:00:16.2]} 55. Kg4 {[%clk
0:00:06.7]} 55... Bf6 {[%clk 0:00:15.9]} 56. Rg6 {[%clk 0:00:06.9]} 56... Ke5
{[%clk 0:00:15.6]} 57. f4+ {[%clk 0:00:07.4]} 57... Ke6 {[%clk 0:00:16]} 58. h6
{[%clk 0:00:07.5]} 58... Rh7 {[%clk 0:00:13.7]} 59. Kh5 {[%clk 0:00:07.5]} 59...
Kf7 {[%clk 0:00:14.3]} 60. f5 {[%clk 0:00:07.6]} 60... Rh8 {[%clk 0:00:14.9]}
61. Kg4 {[%clk 0:00:05.6]} 61... Re8 {[%clk 0:00:14.7]} 62. Kh5 {[%clk
0:00:05.3]} 62... Re4 {[%clk 0:00:15.3]} 63. Rg4 {[%clk 0:00:04.4]} 63... Re1
{[%clk 0:00:15.9]} 64. Rg3 {[%clk 0:00:03]} 64... Rh1+ {[%clk 0:00:15.8]} 65.
Kg4 {[%clk 0:00:03.4]} 65... Rxh6 {[%clk 0:00:16.4]} 66. Kf4 {[%clk 0:00:03.5]}
66... Rh4+ {[%clk 0:00:17.1]} 67. Kf3 {[%clk 0:00:03.8]} 67... Rh5 {[%clk
0:00:17.8]} 68. Ke4 {[%clk 0:00:03.8]} 68... Rh4+ {[%clk 0:00:17.9]} 69. Kf3
{[%clk 0:00:04.3]} 69... Ke7 {[%clk 0:00:18.3]} 70. Rg6 {[%clk 0:00:04.2]} 70...
Rh5 {[%clk 0:00:18.7]} 71. Ke4 {[%clk 0:00:04.1]} 71... Rh4+ {[%clk 0:00:19.6]}
72. Kf3 {[%clk 0:00:04.4]} 72... Rh8 {[%clk 0:00:19]} 73. Kf4 {[%clk 0:00:04.6]}
73... Ra8 {[%clk 0:00:19.6]} 74. Kf3 {[%clk 0:00:05]} 74... Ra5 {[%clk
0:00:20.3]} 75. Kg4 {[%clk 0:00:05]} 75... Rb5 {[%clk 0:00:20.7]} 76. Kf4 {[%clk
0:00:05.1]} 76... Kf7 {[%clk 0:00:21.1]} 77. Kg4 {[%clk 0:00:05.3]} 77... Bg7
{[%clk 0:00:21.6]} 78. Kf4 {[%clk 0:00:05.3]} 78... Rb4+ {[%clk 0:00:22.2]} 79.
Kg5 {[%clk 0:00:05.2]} 79... Be5 {[%clk 0:00:22.8]} 80. Re6 {[%clk 0:00:03.9]}
80... Re4 {[%clk 0:00:22]} 81. Rc6 {[%clk 0:00:03.1]} 81... Re1 {[%clk
0:00:21.9]} 82. Rb6 {[%clk 0:00:02.7]} 82... Ke7 {[%clk 0:00:22]} 83. Rb7+
{[%clk 0:00:02.6]} 83... Kd6 {[%clk 0:00:22.1]} 84. f6 {[%clk 0:00:02.6]} 84...
Ke6 {[%clk 0:00:22.4]} 85. Re7+ {[%clk 0:00:02.1]} 85... Kd6 {[%clk 0:00:22.6]}
86. Rb7 {[%clk 0:00:01.4]} 86... Rg1+ {[%clk 0:00:22]} 0-1

[Event "Early-Titled-Tuesday-Blitz-September-05-2023"]
[Site "Chess.com"]
[Date "2023.09.05"]
[Round "2"]
[White "Evgeny81"]
[Black "03revilo"]
[Result "1/2-1/2"]
[WhiteElo "2744"]
[BlackElo "2424"]
[TimeControl "180+1"]
[EndTime "8:19:15 PDT"]
[Termination "Game drawn by repetition"]

1. e4 {[%clk 0:02:57.2]} 1... c5 {[%clk 0:02:59.4]} 2. Nf3 {[%clk 0:02:54.1]}
2... e6 {[%clk 0:02:59.5]} 3. b3 {[%clk 0:02:53.6]} 3... a6 {[%clk 0:02:58.7]}
4. Bb2 {[%clk 0:02:52.8]} 4... Nc6 {[%clk 0:02:59.2]} 5. d4 {[%clk 0:02:52.2]}
5... cxd4 {[%clk 0:02:59]} 6. Nxd4 {[%clk 0:02:53.1]} 6... Nf6 {[%clk
0:02:49.6]} 7. Bd3 {[%clk 0:02:51.7]} 7... Bb4+ {[%clk 0:02:42.5]} 8. Nd2 {[%clk
0:02:47]} 8... O-O {[%clk 0:02:32.1]} 9. O-O {[%clk 0:02:45.4]} 9... d6 {[%clk
0:02:25.4]} 10. Nxc6 {[%clk 0:02:37.8]} 10... bxc6 {[%clk 0:02:26.3]} 11. e5
{[%clk 0:02:38]} 11... dxe5 {[%clk 0:02:26.2]} 12. Bxe5 {[%clk 0:02:37.7]} 12...
a5 {[%clk 0:02:21.6]} 13. a3 {[%clk 0:02:26.1]} 13... Bd6 {[%clk 0:02:09.7]} 14.
Bxf6 {[%clk 0:02:25.1]} 14... gxf6 {[%clk 0:02:01.4]} 15. Qg4+ {[%clk
0:02:11.3]} 15... Kh8 {[%clk 0:02:00.7]} 16. Qe4 {[%clk 0:02:11.7]} 16... f5
{[%clk 0:01:59.3]} 17. Qxc6 {[%clk 0:02:11.9]} 17... Rb8 {[%clk 0:01:43.5]} 18.
Qc3+ {[%clk 0:02:06.9]} 18... f6 {[%clk 0:01:33.3]} 19. Nc4 {[%clk 0:02:06.9]}
19... Qc7 {[%clk 0:01:27.3]} 20. g3 {[%clk 0:01:53.5]} 20... Be5 {[%clk
0:01:19.5]} 21. Qxa5 {[%clk 0:01:48.7]} 21... Qxa5 {[%clk 0:01:18.7]} 22. Nxa5
{[%clk 0:01:49.6]} 22... Bxa1 {[%clk 0:01:18.2]} 23. Rxa1 {[%clk 0:01:50.5]}
23... Bd7 {[%clk 0:01:10]} 24. b4 {[%clk 0:01:46.8]} 24... Rfd8 {[%clk
0:00:58.1]} 25. c4 {[%clk 0:01:41.5]} 25... Ba4 {[%clk 0:00:55]} 26. Bf1 {[%clk
0:01:38.7]} 26... Rd2 {[%clk 0:00:50.8]} 27. c5 {[%clk 0:01:31.8]} 27... Rc2
{[%clk 0:00:47.8]} 28. Nc4 {[%clk 0:01:25.7]} 28... Bc6 {[%clk 0:00:24.3]} 29.
Nd6 {[%clk 0:01:22.4]} 29... Bd5 {[%clk 0:00:16.4]} 30. Bg2 {[%clk 0:01:07.9]}
30... f4 {[%clk 0:00:10.3]} 31. Bxd5 {[%clk 0:00:38.5]} 31... exd5 {[%clk
0:00:11.2]} 32. Kg2 {[%clk 0:00:38.6]} 32... Rc3 {[%clk 0:00:04.8]} 33. Rd1
{[%clk 0:00:17.4]} 33... f3+ {[%clk 0:00:04.5]} 34. Kh3 {[%clk 0:00:17]} 34...
Rxa3 {[%clk 0:00:05.2]} 35. c6 {[%clk 0:00:17.6]} 35... Rxb4 {[%clk 0:00:02.3]}
36. c7 {[%clk 0:00:17.9]} 36... Rc3 {[%clk 0:00:02.5]} 37. c8=Q+ {[%clk
0:00:15.6]} 37... Rxc8 {[%clk 0:00:02.3]} 38. Nxc8 {[%clk 0:00:16.5]} 38... d4
{[%clk 0:00:02]} 39. Nd6 {[%clk 0:00:12.5]} 39... Rb2 {[%clk 0:00:02.2]} 40. Ne4
{[%clk 0:00:10.2]} 40... f5 {[%clk 0:00:01.9]} 41. Rd2 {[%clk 0:00:10.4]} 41...
fxe4 {[%clk 0:00:01]} 42. Rxb2 {[%clk 0:00:10.2]} 42... e3 {[%clk 0:00:01.9]}
43. Rb8+ {[%clk 0:00:05.5]} 43... Kg7 {[%clk 0:00:02.2]} 44. fxe3 {[%clk
0:00:04.6]} 44... dxe3 {[%clk 0:00:01.7]} 45. Rb7+ {[%clk 0:00:02.9]} 45... Kf6
{[%clk 0:00:01.7]} 46. Rb6+ {[%clk 0:00:02.6]} 46... Ke5 {[%clk 0:00:01.8]} 47.
Rb8 {[%clk 0:00:03.1]} 47... e2 {[%clk 0:00:01.7]} 48. Re8+ {[%clk 0:00:02.7]}
48... Kd4 {[%clk 0:00:02.1]} 49. Kg4 {[%clk 0:00:01.9]} 49... f2 {[%clk
0:00:02.1]} 50. Rxe2 {[%clk 0:00:02.5]} 50... f1=Q {[%clk 0:00:03]} 51. Re6
{[%clk 0:00:02.9]} 51... Qd1+ {[%clk 0:00:02.9]} 52. Kg5 {[%clk 0:00:02.8]}
52... Kd5 {[%clk 0:00:03.3]} 53. Rf6 {[%clk 0:00:02.8]} 53... Qd2+ {[%clk
0:00:03.3]} 54. Rf4 {[%clk 0:00:03.7]} 54... Ke5 {[%clk 0:00:03.7]} 55. Kg4
{[%clk 0:00:04]} 55... Qe2+ {[%clk 0:00:03.7]} 56. Kg5 {[%clk 0:00:04.1]} 56...
Qe3 {[%clk 0:00:03.5]} 57. Kg4 {[%clk 0:00:04.3]} 57... Qe2+ {[%clk 0:00:03.6]}
58. Kh3 {[%clk 0:00:04.9]} 58... Qe3 {[%clk 0:00:03.1]} 59. Kg2 {[%clk 0:00:04]}
59... Qd2+ {[%clk 0:00:03.1]} 60. Rf2 {[%clk 0:00:03.7]} 60... Qd5+ {[%clk
0:00:03.3]} 61. Kh3 {[%clk 0:00:03.6]} 61... Qe4 {[%clk 0:00:02.8]} 62. Rf4
{[%clk 0:00:03.5]} 62... Qg6 {[%clk 0:00:03]} 63. Kg2 {[%clk 0:00:03.5]} 63...
h5 {[%clk 0:00:03]} 64. Rh4 {[%clk 0:00:02.3]} 64... Qg5 {[%clk 0:00:02.9]} 65.
Rf4 {[%clk 0:00:02.4]} 65... Qg6 {[%clk 0:00:03]} 66. Rh4 {[%clk 0:00:02.6]}
66... Kf5 {[%clk 0:00:03.5]} 67. Rf4+ {[%clk 0:00:02.7]} 67... Kg5 {[%clk
0:00:04]} 68. Rh4 {[%clk 0:00:02.6]} 68... Qc6+ {[%clk 0:00:04]} 69. Kg1 {[%clk
0:00:02.3]} 69... Qc2 {[%clk 0:00:04]} 70. Rf4 {[%clk 0:00:02.3]} 70... Qd1+
{[%clk 0:00:03.6]} 71. Kg2 {[%clk 0:00:02.4]} 71... Qe2+ {[%clk 0:00:03.8]} 72.
Kg1 {[%clk 0:00:02.9]} 72... Qe1+ {[%clk 0:00:02.9]} 73. Kg2 {[%clk 0:00:03.5]}
73... Qd2+ {[%clk 0:00:03.1]} 74. Kg1 {[%clk 0:00:04]} 74... Qxf4 {[%clk
0:00:02.6]} 75. gxf4+ {[%clk 0:00:03.9]} 75... Kxf4 {[%clk 0:00:03.5]} 76. Kg2
{[%clk 0:00:04]} 76... Kg4 {[%clk 0:00:02.8]} 77. h3+ {[%clk 0:00:03.8]} 77...
Kh4 {[%clk 0:00:03.2]} 78. Kh2 {[%clk 0:00:04.3]} 78... Kg5 {[%clk 0:00:03.6]}
79. Kg3 {[%clk 0:00:05]} 79... h4+ {[%clk 0:00:04.2]} 80. Kf3 {[%clk 0:00:05.1]}
80... Kf5 {[%clk 0:00:04.8]} 81. Ke3 {[%clk 0:00:05.2]} 81... Ke5 {[%clk
0:00:05.3]} 82. Kf3 {[%clk 0:00:06.1]} 82... Kf5 {[%clk 0:00:05.8]} 83. Ke3
{[%clk 0:00:06.5]} 83... Ke5 {[%clk 0:00:06.3]} 84. Kf3 {[%clk 0:00:07.4]} 84...
Kf5 {[%clk 0:00:06.8]} 1/2-1/2

[Event "Early-Titled-Tuesday-Blitz-September-05-2023"]
[Site "Chess.com"]
[Date "2023.09.05"]
[Round "2"]
[White "FabianoCaruana"]
[Black "juancruzarias"]
[Result "1/2-1/2"]
[WhiteElo "3098"]
[BlackElo "2688"]
[TimeControl "180+1"]
[EndTime "8:19:19 PDT"]
[Termination "Game drawn by repetition"]

1. b3 {[%clk 0:03:00.9]} 1... d5 {[%clk 0:02:59.2]} 2. Bb2 {[%clk 0:03:01.8]}
2... c5 {[%clk 0:02:56.3]} 3. e3 {[%clk 0:03:01.8]} 3... Nf6 {[%clk 0:02:55.5]}
4. Nf3 {[%clk 0:03:00.2]} 4... g6 {[%clk 0:02:55.2]} 5. c4 {[%clk 0:02:57.5]}
5... dxc4 {[%clk 0:02:54.3]} 6. Bxc4 {[%clk 0:02:56.2]} 6... Bg7 {[%clk
0:02:54.7]} 7. O-O {[%clk 0:02:56.6]} 7... O-O {[%clk 0:02:54.8]} 8. Qe2 {[%clk
0:02:56.3]} 8... Nc6 {[%clk 0:02:49.7]} 9. Rd1 {[%clk 0:02:53.8]} 9... Na5
{[%clk 0:02:29.2]} 10. Bd3 {[%clk 0:02:45.1]} 10... b6 {[%clk 0:02:24.9]} 11.
Nc3 {[%clk 0:02:42.3]} 11... Bb7 {[%clk 0:02:24.8]} 12. Ba6 {[%clk 0:02:40.4]}
12... Qc8 {[%clk 0:02:23.7]} 13. Bxb7 {[%clk 0:02:39.4]} 13... Qxb7 {[%clk
0:02:24.6]} 14. d4 {[%clk 0:02:38]} 14... cxd4 {[%clk 0:02:23.1]} 15. Nxd4
{[%clk 0:02:38.9]} 15... Rac8 {[%clk 0:02:20.3]} 16. Rac1 {[%clk 0:02:37]} 16...
Nc6 {[%clk 0:02:11.8]} 17. Qf3 {[%clk 0:02:36.2]} 17... Qa8 {[%clk 0:02:08.1]}
18. Ncb5 {[%clk 0:02:11.9]} 18... Nxd4 {[%clk 0:02:04.8]} 19. Bxd4 {[%clk
0:02:12.8]} 19... Qb8 {[%clk 0:01:51.9]} 20. Bc3 {[%clk 0:01:39]} 20... h5
{[%clk 0:01:34.2]} 21. h3 {[%clk 0:01:38]} 21... a6 {[%clk 0:01:22.7]} 22. Nd4
{[%clk 0:01:37.7]} 22... Qa8 {[%clk 0:01:13.1]} 23. Qxa8 {[%clk 0:01:36]} 23...
Rxa8 {[%clk 0:01:14]} 24. Nc6 {[%clk 0:01:36.1]} 24... Rfe8 {[%clk 0:01:11.7]}
25. a4 {[%clk 0:01:32.4]} 25... Ne4 {[%clk 0:01:08.1]} 26. Bxg7 {[%clk
0:01:30.9]} 26... Kxg7 {[%clk 0:01:09]} 27. b4 {[%clk 0:01:27.6]} 27... e6
{[%clk 0:00:58.1]} 28. f3 {[%clk 0:01:24.1]} 28... Nf6 {[%clk 0:00:57.5]} 29. e4
{[%clk 0:01:24.7]} 29... Rec8 {[%clk 0:00:45.3]} 30. h4 {[%clk 0:01:15.6]} 30...
Kf8 {[%clk 0:00:39.8]} 31. Kf2 {[%clk 0:01:14.7]} 31... Ke8 {[%clk 0:00:39.5]}
32. Ke3 {[%clk 0:01:04.6]} 32... Rc7 {[%clk 0:00:40]} 33. Ne5 {[%clk 0:00:52.4]}
33... Rac8 {[%clk 0:00:37.7]} 34. Rxc7 {[%clk 0:00:51.5]} 34... Rxc7 {[%clk
0:00:38.6]} 35. Rd6 {[%clk 0:00:51.4]} 35... Rb7 {[%clk 0:00:34.3]} 36. b5
{[%clk 0:00:47.8]} 36... axb5 {[%clk 0:00:32.8]} 37. axb5 {[%clk 0:00:48.7]}
37... Ke7 {[%clk 0:00:32.8]} 38. Rc6 {[%clk 0:00:40.8]} 38... Ne8 {[%clk
0:00:32.9]} 39. Nc4 {[%clk 0:00:39.5]} 39... Nc7 {[%clk 0:00:27.9]} 40. Nd6
{[%clk 0:00:38.4]} 40... Rb8 {[%clk 0:00:15.2]} 41. Rxc7+ {[%clk 0:00:31.6]}
41... Kxd6 {[%clk 0:00:16.1]} 42. Rc6+ {[%clk 0:00:32.1]} 42... Kd7 {[%clk
0:00:15.9]} 43. Kf4 {[%clk 0:00:31.6]} 43... f6 {[%clk 0:00:16.2]} 44. e5 {[%clk
0:00:30.5]} 44... Rf8 {[%clk 0:00:10.2]} 45. Rxb6 {[%clk 0:00:30.1]} 45... fxe5+
{[%clk 0:00:09.9]} 46. Kxe5 {[%clk 0:00:27.1]} 46... Rf5+ {[%clk 0:00:10.4]} 47.
Ke4 {[%clk 0:00:27.5]} 47... g5 {[%clk 0:00:11]} 48. Rb7+ {[%clk 0:00:20]} 48...
Kd6 {[%clk 0:00:11.3]} 49. Rh7 {[%clk 0:00:08.3]} 49... Rf4+ {[%clk 0:00:10.9]}
50. Ke3 {[%clk 0:00:08.2]} 50... Rxh4 {[%clk 0:00:11.8]} 51. b6 {[%clk
0:00:08.6]} 51... Rb4 {[%clk 0:00:11.3]} 52. Rxh5 {[%clk 0:00:08]} 52... Rxb6
{[%clk 0:00:10.2]} 53. Rxg5 {[%clk 0:00:08.6]} 53... Ke7 {[%clk 0:00:10.7]} 54.
Kf4 {[%clk 0:00:08.8]} 54... Kf6 {[%clk 0:00:11.6]} 55. Kg4 {[%clk 0:00:09.1]}
55... Rb4+ {[%clk 0:00:12.1]} 56. f4 {[%clk 0:00:09.3]} 56... Rb2 {[%clk
0:00:13]} 57. g3 {[%clk 0:00:09.4]} 57... Rb1 {[%clk 0:00:13.9]} 58. Ra5 {[%clk
0:00:09.4]} 58... Rb3 {[%clk 0:00:14.4]} 59. Ra6 {[%clk 0:00:09.8]} 59... Rc3
{[%clk 0:00:14.8]} 60. Rb6 {[%clk 0:00:08.6]} 60... Rd3 {[%clk 0:00:14.8]} 61.
Kh4 {[%clk 0:00:08.5]} 61... Ra3 {[%clk 0:00:15]} 62. Rb7 {[%clk 0:00:08.4]}
62... Ra1 {[%clk 0:00:15.1]} 63. Kg4 {[%clk 0:00:08.5]} 63... Ra3 {[%clk
0:00:15.3]} 64. Rh7 {[%clk 0:00:08.7]} 64... Ra1 {[%clk 0:00:15.5]} 65. Rh6+
{[%clk 0:00:09]} 65... Kf7 {[%clk 0:00:16]} 66. Kg5 {[%clk 0:00:09.5]} 66...
Ra5+ {[%clk 0:00:16.3]} 67. Kh4 {[%clk 0:00:10.1]} 67... Ra3 {[%clk 0:00:17.2]}
68. g4 {[%clk 0:00:10.4]} 68... Ra5 {[%clk 0:00:16.9]} 69. Rh7+ {[%clk 0:00:09]}
69... Kg6 {[%clk 0:00:17.1]} 70. Re7 {[%clk 0:00:09.1]} 70... Kf6 {[%clk
0:00:17.6]} 71. Rb7 {[%clk 0:00:09.2]} 71... Ra4 {[%clk 0:00:18.1]} 72. Kg3
{[%clk 0:00:09]} 72... Ra3+ {[%clk 0:00:18.2]} 73. Kh4 {[%clk 0:00:09.5]} 73...
Ra4 {[%clk 0:00:19.1]} 74. g5+ {[%clk 0:00:10.1]} 74... Kg6 {[%clk 0:00:19.4]}
75. Kg4 {[%clk 0:00:10]} 75... e5 {[%clk 0:00:20]} 76. Rb6+ {[%clk 0:00:10.3]}
76... Kg7 {[%clk 0:00:20.1]} 77. Rb7+ {[%clk 0:00:10]} 77... Kg8 {[%clk
0:00:19.4]} 78. Kf5 {[%clk 0:00:09.4]} 78... Rxf4+ {[%clk 0:00:19.7]} 79. Kxe5
{[%clk 0:00:09.2]} 79... Rf8 {[%clk 0:00:20.3]} 80. Ke6 {[%clk 0:00:08.9]} 80...
Re8+ {[%clk 0:00:19.5]} 81. Kf6 {[%clk 0:00:09.3]} 81... Rf8+ {[%clk 0:00:19.9]}
82. Kg6 {[%clk 0:00:09.8]} 82... Rd8 {[%clk 0:00:20.3]} 83. Kh6 {[%clk
0:00:10.3]} 83... Rf8 {[%clk 0:00:20.6]} 84. g6 {[%clk 0:00:10.9]} 84... Re8
{[%clk 0:00:21.3]} 85. Rg7+ {[%clk 0:00:11]} 85... Kh8 {[%clk 0:00:21.2]} 86.
Rf7 {[%clk 0:00:11.6]} 86... Kg8 {[%clk 0:00:21.3]} 87. Rh7 {[%clk 0:00:12.2]}
87... Rd8 {[%clk 0:00:21.6]} 88. Rg7+ {[%clk 0:00:12.6]} 88... Kh8 {[%clk
0:00:21.3]} 89. Rh7+ {[%clk 0:00:13.5]} 89... Kg8 {[%clk 0:00:21.8]} 90. Rg7+
{[%clk 0:00:14.4]} 90... Kh8 {[%clk 0:00:22.1]} 91. Rh7+ {[%clk 0:00:15.3]}
91... Kg8 {[%clk 0:00:22.7]} 1/2-1/2